{"text_format":"1","workbook":"xlsx","n_sheets":3,"sheets":["List1","Data","List3"],"not_rendered":{"charts":0,"images":0,"macros":1,"external_links":0,"defined_names":1,"comments":1,"pivot_tables":0},"unopened":[],"bounds":{"document_bytes":16777216,"sheet_cells":100000,"rows_first":2000,"rows_last":500,"rows_between":2000,"halvings":0,"cell_chars":16384,"cell_head_chars":4096},"cells_cut":0,"cells_raw":0,"read":"whole","date_system":"1900"}

{"sheet":"List1","index":0,"n_rows":51,"n_cols":24,"rows_kept":51,"cut":false,"hidden":false,"merged":[[3,14,3,15],[5,16,5,17],[5,18,5,19],[0,0,0,20],[5,20,6,20],[5,6,5,7],[5,8,5,9],[5,10,5,11],[5,14,5,15],[1,14,1,20],[5,1,6,1],[1,1,1,3],[5,2,5,3],[5,0,6,0],[5,4,5,5],[5,12,5,13],[41,0,41,20],[42,1,43,1],[42,0,43,0],[42,2,42,3],[42,4,42,5],[42,6,42,7],[42,8,42,9],[42,10,42,11],[42,12,42,13],[42,14,42,15],[42,16,42,17],[42,18,42,19],[42,20,43,20]]}
["Docházka dle zakázek"]
["Měsíc:",null,null,null,null,2019,null,null,null,null,null,null,null,"Jméno pracovníka:",null,null,null,null,null,null,null,null,"Vysvětlivky:"]
[]
["Datum:",null,null,null,null,null,null,null,null,null,"Počet hodin celkem",null,null,null,{"$f":"SUM(U8:U38)","v":0},null,null,null,null,null,null,null,1,"zadat měsíc"]
[null,null,null,null,null,null,null,null,null,null,null,null,null,null,null,null,null,null,null,null,null,null,2,"zadat datum ve formátu 1 tečka měsíc"]
["Datum","Den v týdnu","Zakázka",null,"Zakázka",null,"Zakázka",null,"Zakázka",null,"Zakázka",null,"Zakázka",null,"Zakázka",null,"Zakázka",null,"Zakázka",null,"celkem hodin",null,3,"zadat jméno ze seznamu"]
[null,null,"číslo","hod","číslo","hod","číslo","hod","číslo","hod","číslo","hod","číslo","hod","číslo","hod","číslo","hod","číslo","hod",null,null,4,"postupně vyplnit číslo zakázky a počet hodin"]
[{"$f":"B4","v":"00:00:00"},{"$f":"A8","v":"00:00:00"},null,null,null,null,null,null,null,null,null,null,null,null,null,null,null,null,null,null,{"$f":"D8+F8+H8+J8+L8+N8+P8+R8+T8","v":0},null,5,"vyplněný formulář odeslat emailem na adresu elektro@bmaelektroservis.cz"]
[{"$f":"A8+1","v":"1900-01-01"},"1900-01-01",null,null,null,null,null,null,null,null,null,null,null,null,null,null,null,null,null,null,{"$f":"D9+F9+H9+J9+L9+N9+P9+R9+T9","v":0},null,6,"popřípadě vytisknout a odevzdat"]
[{"$f":"A9+1","v":"1900-01-02"},"1900-01-02",null,null,null,null,null,null,null,null,null,null,null,null,null,null,null,null,null,null,0]
["1900-01-03","1900-01-03",null,null,null,null,null,null,null,null,null,null,null,null,null,null,null,null,null,null,0,null,"Tip:"]
["1900-01-04","1900-01-04",null,null,null,null,null,null,null,null,null,null,null,null,null,null,null,null,null,null,0]
["1900-01-05","1900-01-05",null,null,null,null,null,null,null,null,null,null,null,null,null,null,null,null,null,null,0,null,"a","zadávat zakázky postupně po dnech"]
["1900-01-06","1900-01-06",null,null,null,null,null,null,null,null,null,null,null,null,null,null,null,null,null,null,0,null,"b","pokud nestačí zakázky ve formuláři, pokračovat níže"]
["1900-01-07","1900-01-07",null,null,null,null,null,null,null,null,null,null,null,null,null,null,null,null,null,null,0,null,null,"(zadat datum ručně a vyplnit zakázku)"]
["1900-01-08","1900-01-08",null,null,null,null,null,null,null,null,null,null,null,null,null,null,null,null,null,null,0]
["1900-01-09","1900-01-09",null,null,null,null,null,null,null,null,null,null,null,null,null,null,null,null,null,null,0]
["1900-01-10","1900-01-10",null,null,null,null,null,null,null,null,null,null,null,null,null,null,null,null,null,null,0]
["1900-01-11","1900-01-11",null,null,null,null,null,null,null,null,null,null,null,null,null,null,null,null,null,null,0]
["1900-01-12","1900-01-12",null,null,null,null,null,null,null,null,null,null,null,null,null,null,null,null,null,null,0]
["1900-01-13",{"$f":"A21","v":"1900-01-13"},null,null,null,null,null,null,null,null,null,null,null,null,null,null,null,null,null,null,0]
["1900-01-14","1900-01-14",null,null,null,null,null,null,null,null,null,null,null,null,null,null,null,null,null,null,0]
["1900-01-15","1900-01-15",null,null,null,null,null,null,null,null,null,null,null,null,null,null,null,null,null,null,0]
["1900-01-16","1900-01-16",null,null,null,null,null,null,null,null,null,null,null,null,null,null,null,null,null,null,0]
["1900-01-17","1900-01-17",null,null,null,null,null,null,null,null,null,null,null,null,null,null,null,null,null,null,0]
["1900-01-18","1900-01-18",null,null,null,null,null,null,null,null,null,null,null,null,null,null,null,null,null,null,0]
["1900-01-19","1900-01-19",null,null,null,null,null,null,null,null,null,null,null,null,null,null,null,null,null,null,0]
["1900-01-20","1900-01-20",null,null,null,null,null,null,null,null,null,null,null,null,null,null,null,null,null,null,0]
["1900-01-21","1900-01-21",null,null,null,null,null,null,null,null,null,null,null,null,null,null,null,null,null,null,0]
["1900-01-22","1900-01-22",null,null,null,null,null,null,null,null,null,null,null,null,null,null,null,null,null,null,0]
["1900-01-23","1900-01-23",null,null,null,null,null,null,null,null,null,null,null,null,null,null,null,null,null,null,0]
["1900-01-24","1900-01-24",null,null,null,null,null,null,null,null,null,null,null,null,null,null,null,null,null,null,0]
["1900-01-25","1900-01-25",null,null,null,null,null,null,null,null,null,null,null,null,null,null,null,null,null,null,0]
["1900-01-26","1900-01-26",null,null,null,null,null,null,null,null,null,null,null,null,null,null,null,null,null,null,0]
["1900-01-27","1900-01-27",null,null,null,null,null,null,null,null,null,null,null,null,null,null,null,null,null,null,0]
["1900-01-28","1900-01-28",null,null,null,null,null,null,null,null,null,null,null,null,null,null,null,null,null,null,0]
["1900-01-29","1900-01-29",null,null,null,null,null,null,null,null,null,null,null,null,null,null,null,null,null,null,0]
["1900-01-30","1900-01-30",null,null,null,null,null,null,null,null,null,null,null,null,null,null,null,null,null,null,0]
[]
["Poznámky:",null,"Vyplněný tiskopis odevzdat nebo odeslat nejpozději do 10 dne dalšího měsíce"]
[]
["Doplnění údajů"]
["Datum","Den v týdnu","Zakázka",null,"Zakázka",null,"Zakázka",null,"Zakázka",null,"Zakázka",null,"Zakázka",null,"Zakázka",null,"Zakázka",null,"Zakázka",null,"celkem hodin"]
[null,null,"číslo","hod","číslo","hod","číslo","hod","číslo","hod","číslo","hod","číslo","hod","číslo","hod","číslo","hod","číslo","hod"]
[null,null,null,null,null,null,null,null,null,null,null,null,null,null,null,null,null,null,null,null,{"$f":"D45+F45+H45+J45+L45+N45+P45+R45+T45","v":0}]
[null,null,null,null,null,null,null,null,null,null,null,null,null,null,null,null,null,null,null,null,0]
[null,null,null,null,null,null,null,null,null,null,null,null,null,null,null,null,null,null,null,null,0]
[null,null,null,null,null,null,null,null,null,null,null,null,null,null,null,null,null,null,null,null,0]
[null,null,null,null,null,null,null,null,null,null,null,null,null,null,null,null,null,null,null,null,0]
[null,null,null,null,null,null,null,null,null,null,null,null,null,null,null,null,null,null,null,null,0]
[null,null,null,null,null,null,null,null,null,null,null,null,null,null,null,null,null,null,null,null,0]

{"sheet":"Data","index":1,"n_rows":12,"n_cols":3,"rows_kept":12,"cut":false,"hidden":true,"merged":[]}
["Pondělí","Leden","Bolek Libor"]
["Úterý","Únor","Gibl Ivo"]
["Středa","Březen","Přerovský"]
["Čtvrtek","Duben","Byrtus"]
["Pátek","Květen","Dostál"]
["Sobota","Červen","Kavaler"]
["Neděle","Červenec"]
[null,"Srpen"]
[null,"Září"]
[null,"Říjen"]
[null,"Listopad"]
[null,"Prosinec"]

{"sheet":"List3","index":2,"n_rows":0,"n_cols":0,"rows_kept":0,"cut":false,"hidden":true,"merged":[]}